[Event "87th Spanish Championship 2022"]
[Site "Linares"]
[Date "2022.08.14"]
[Round "5.17"]
[White "Cesar Maestre, Bernardo"]
[Black "Moreno Ruiz, Javier"]
[Result "0-1"]
[ECO "C07"]
[WhiteElo "2343"]
[BlackElo "2428"]
[Annotator "TA"]
[PlyCount "114"]
[EventDate "2022.08.11"]
[EventType "swiss"]
[EventCountry "ESP"]
[SourceTitle "playchess.com"]
[Source "ChessBase"]
[SourceQuality "1"]
[TimeControl "5400+30"]

{[%evp 9,114,6,8,-10,0,0,-8,-2,-6,-6,-9,-10,-6,-5,2,0,0,6,16,8,13,0,0,-9,-4,-18,-13,-62,-29,-60,-49,-47,-50,-61,-62,-77,-64,-85,-60,-62,-29,-85,-22,-33,-12,-47,-25,-44,-22,-16,-14,-33,56,0,0,-48,-46,-87,-54,-189,-186,-208,-210,-198,-195,-177,-59,-120,-62,-55,-60,-345,-31,-47,-50,-61,-61,-61,-63,-61,-28,-88,-111,-165,-168,-163,-159,-161,-166,-171,-148,-187,-162,-324,-251,-266,-266,-717,-1006,-946,-940,-731,-684,-830,-764,-813,-758]} 1. e4 {[%emt 0:00:02]} e6 {[%emt 0:01:23][%cal Be7e6,Be6e5][%mdl 32]} 2. d4 {[%emt 0:00:07]} d5 {[%emt 0:00:05]} 3. Nd2 {[%emt 0:00:06]} c5 {[%emt 0:00:44]} 4. Ngf3 {[%emt 0:00:06]} cxd4 {[%emt 0:00:20]} 5. Nxd4 {[%emt 0:00:14]} Nf6 {[%emt 0:00:14]} 6. Bd3 {[%emt 0:02:57] C07: French Tarrasch: 3...c5, 4 Ngf3 and 4 exd5 Qxd5.} e5 {[%emt 0:07:52]} 7. N4b3 {[%emt 0:05:44] [#]} (7. Bb5+ Bd7 8. Bxd7+ Qxd7 $15) 7... Nc6 $146 {[%emt 0:02:35]} ({Predecessor:} 7... dxe4 8. Nxe4 Nxe4 9. Bxe4 Qxd1+ 10. Kxd1 Nd7 11. Re1 Bd6 12. Na5 Nc5 13. Nc4 O-O 14. Nxd6 Rd8 15. Bd3 Nxd3 16. cxd3 Rxd6 17. Rxe5 Be6 18. Be3 Rxd3+ {½-½ (18) Ginsburg,G (2523)-Illner,A (2375) Germany 2012}) 8. O-O {[%emt 0:01:58] The position is equal.} Be7 {[%emt 0:00:54]} 9. c3 {[%emt 0:13:04]} O-O {[%emt 0:01:17]} 10. exd5 {[%emt 0:10:57]} Qxd5 {[%emt 0:05:33]} 11. Qe2 {[%emt 0:01:01]} Bg4 {[%emt 0:09:45]} 12. f3 {[%emt 0:01:10]} Be6 $36 {[%emt 0:02:01][%mdl 2048] Black is pushing.} 13. Ne4 {[%emt 0:09:45]} Rad8 {[%emt 0:11:32]} 14. Nxf6+ {[%emt 0:03:52]} Bxf6 {[%emt 0:00:07]} 15. Be4 {[%emt 0:09:07]} Qd6 {[%emt 0:04:39]} 16. Be3 {[%emt 0:00:10]} b6 {[%emt 0:00:50] Prevents Bc5.} 17. Qb5 {[%emt 0:02:03]} Ne7 {[%emt 0:01:09]} 18. Qe2 {[%emt 0:06:34]} (18. c4 $11) 18... Qc7 {[%emt 0:03:24]} 19. Qc2 {[%emt 0:00:26]} Nd5 {[%emt 0:07:04]} 20. Bf2 {[%emt 0:01:06]} (20. Bxh7+ $2 Kh8 21. Bf2 g6 22. Bxg6 fxg6 23. Qxg6 Nf4 24. Qh6+ Qh7 25. Qxh7+ Kxh7 $19) 20... g6 {[%emt 0:00:41]} 21. Rfe1 {[%emt 0:02:19]} Nf4 {[%emt 0:09:27]} 22. Rad1 {[%emt 0:09:09]} Bg5 {[%emt 0:01:03]} 23. h4 {[%emt 0:03:07]} Bh6 {[%emt 0:01:43]} 24. Nc1 {[%emt 0:00:47]} Bg7 {[%emt 0:06:43]} 25. Ne2 {[%emt 0:03:06]} (25. Nd3 $11) 25... Nd5 {[%emt 0:03:29]} (25... Bxa2 $2 26. Nxf4 exf4 27. b3 $18) (25... Nxe2+ $17 26. Rxe2 Rxd1+ 27. Qxd1 Rd8) 26. Qa4 {[%emt 0:01:12]} Bh6 {[%emt 0:04:43]} 27. Nc1 {[%emt 0:03:18]} Rd7 {[%emt 0:01:48]} 28. Bc2 {[%emt 0:01:21]} Rfd8 {[%emt 0:01:01] aiming for ...Nf4.} 29. Nd3 {[%emt 0:02:34]} Bg7 {[%emt 0:02:38][%cal Oe5e4]} 30. Bg3 {[%emt 0:00:53]} (30. h5 $5) 30... f6 {[%emt 0:01:04]} (30... Ne7 $1 $15) 31. Bb3 {[%emt 0:00:31]} ({White should play} 31. f4 $1 $14) 31... Bf7 $11 {[%emt 0:00:24]} 32. Nc1 {[%emt 0:02:30]} (32. Nf2 $11 {should be considered.}) 32... Bh6 $15 {[%emt 0:02:13]} 33. Qe4 {[%emt 0:00:44] Prevents Ne3.} Nf4 {[%emt 0:01:37]} 34. Bxf4 {[%emt 0:00:34]} (34. Bxf7+ $15 Kxf7 35. Rxd7+ Rxd7 36. Nb3) 34... Bxf4 $19 {[%emt 0:00:12]} 35. Bxf7+ {[%emt 0:01:03]} Kxf7 {[%emt 0:00:11]} 36. Rxd7+ {[%emt 0:03:31]} Qxd7 {[%emt 0:00:15]} (36... Rxd7 37. Nd3 $17) 37. Ne2 {[%emt 0:00:12]} Bh6 {[%emt 0:00:38]} (37... Bd2 $1 $19 {[%cal Rd2e1]} 38. Ra1 f5) 38. h5 {[%emt 0:01:05]} (38. Ng3 $15) 38... Qd5 {[%emt 0:02:08]} (38... Bd2 $1 $17 {[%cal Rd2e1]} 39. Ra1 f5 40. Qc4+ (40. Qxe5 $2 Re8 $19) 40... Qe6) 39. hxg6+ $15 {[%emt 0:00:21]} hxg6 {[%emt 0:00:04] Strongly threatening ...Qxe4.} 40. Qa4 {[%emt 0:01:06][%mdl 8192]} (40. Qxd5+ $15 Rxd5 41. Ng3) 40... Qc5+ $2 {[%emt 0:02:06]} (40... Bd2 $1 $19 {[%cal Rd2e1]} 41. Rf1 (41. Qxa7+ $2 Rd7 $19) 41... Be3+ 42. Kh2 a5) 41. Kf1 {[%emt 0:00:20]} b5 {[%emt 0:00:46][%cal Bb6b5,Bb5c4][%mdl 32]} 42. Qb3+ {[%emt 0:00:24]} Qc4 {[%emt 0:01:04] Black is much more active.} 43. Qxc4+ {[%emt 0:00:16]} bxc4 {[%emt 0:00:02][%mdl 4096] Endgame KRB-KRN} 44. Ng3 {[%emt 0:00:10]} Bf4 {[%emt 0:01:00]} 45. Ne2 {[%emt 0:00:55] [#]} (45. Ne4 $11 {keeps the balance.}) 45... Bg5 $1 $17 {[%emt 0:00:12]} 46. b3 {[%emt 0:00:48] [#]} (46. g3 $17 {keeps fighting.}) 46... Rd2 $1 $19 {[%emt 0:00:34]} 47. Ra1 {[%emt 0:00:09]} Be3 {[%emt 0:00:41]} 48. bxc4 {[%emt 0:00:56]} Ke6 {[%emt 0:01:21]} 49. Ke1 {[%emt 0:00:32]} Rb2 {[%emt 0:00:27]} 50. a4 {[%emt 0:00:33]} Kd6 {[%emt 0:00:16]} 51. Kd1 $2 {[%emt 0:00:29]} (51. Rd1+ {is a better defense.} Kc5 52. Rd3 Rb1+ 53. Rd1 Bf2+ 54. Kd2 Rxd1+ 55. Kxd1) 51... Kc5 {[%emt 0:00:30]} 52. a5 {[%emt 0:00:27]} Kxc4 {[%emt 0:00:22] Threatens to win with ...Kd3.} 53. Ra4+ $2 {[%emt 0:00:35]} (53. Ke1) 53... Kd3 {[%emt 0:00:57] ( -> ...Rb1+). Black is clearly winning.} 54. Nc1+ {[%emt 0:00:03]} Bxc1 {[%emt 0:00:31]} 55. Kxc1 {[%emt 0:00:04]} Rxg2 {[%emt 0:00:08] Hoping for ...f5.} 56. c4 {[%emt 0:01:17]} Rc2+ {[%emt 0:00:21]} 57. Kb1 {[%emt 0:00:11]} Rxc4 {[%emt 0:00:07] Weighted Error Value: White=0.41/Black=0.21 (precise)} 0-1

[Event "87th Spanish Championship 2022"]
[Site "Linares"]
[Date "2022.08.14"]
[Round "5.18"]
[White "Vehi Bach, Victor Manuel"]
[Black "Lianes Garcia, Marcos"]
[Result "0-1"]
[ECO "B48"]
[WhiteElo "2290"]
[BlackElo "2411"]
[Annotator "TA"]
[PlyCount "80"]
[EventDate "2022.08.11"]
[EventType "swiss"]
[EventCountry "ESP"]
[SourceTitle "playchess.com"]
[Source "ChessBase"]
[SourceQuality "1"]
[TimeControl "5400+30"]

{[%evp 11,80,27,45,34,12,-15,97,20,26,22,26,11,22,31,15,21,66,80,67,61,61,51,34,-273,-240,-229,-231,-345,-297,-281,-226,-227,-127,-131,-139,-120,-128,-128,-116,-123,-114,-110,-89,-89,-78,-158,-158,-158,-158,-191,-178,-176,-176,-171,-183,-168,-176,-164,-132,-249,-216,-408,-438,-305,-305,-398,-229,-589,-520,-591,-568]} 1. e4 {[%emt 0:00:03]} c5 {[%emt 0:00:25]} 2. Nf3 {[%emt 0:00:08]} e6 {[%emt 0:00:30]} 3. d4 {[%emt 0:00:17]} cxd4 {[%emt 0:00:13]} 4. Nxd4 {[%emt 0:00:09]} Nc6 {[%emt 0:00:32]} 5. Nc3 {[%emt 0:00:49]} Qc7 {[%emt 0:00:25]} 6. Be3 {[%emt 0:01:40]} a6 {[%emt 0:00:56]} 7. Qf3 {[%emt 0:08:49] 7.g4 gains popularity. B48: Sicilian: Taimanov: 5 Nc3 Qc7 6 Be3 a6 without Be2.} Nf6 {[%emt 0:05:47][%cal Of8a3]} 8. Qg3 {[%emt 0:01:44]} Ne5 {[%emt 0:03:32]} (8... Qxg3 $1 $11 9. fxg3 (9. hxg3 Ng4 $11) 9... Bb4) 9. Be2 {[%emt 0:00:55]} ({White should try} 9. f4 $16 Neg4 10. e5 Nxe3 11. Qxe3) 9... h5 $1 $11 {[%emt 0:24:16] [#]} 10. Nf3 $146 {[%emt 0:16:22]} ({Predecessor:} 10. f4 h4 11. Qh3 Nc4 12. e5 Nxb2 13. Bc1 Bb4 14. Bd2 Nc4 15. exf6 Nxd2 16. fxg7 {1-0 (54) Durarbayli,V (2635)-Izzat,K (2424) Baku 2015}) 10... d6 {[%emt 0:26:21][%cal Oh5h4]} 11. Nxe5 {[%emt 0:13:22]} dxe5 {[%emt 0:02:18]} 12. f4 {[%emt 0:00:09]} h4 {[%emt 0:22:22]} 13. Qg5 {[%emt 0:07:50]} Ba3 {[%emt 0:02:34]} 14. Qxg7 {[%emt 0:11:13]} Rg8 {[%emt 0:00:45]} 15. Qxf6 {[%emt 0:00:08]} Bxb2 {[%emt 0:00:06] [#]} 16. Nb5 $1 {[%emt 0:00:54]} axb5 {[%emt 0:01:07]} 17. Bxb5+ $2 {[%emt 0:00:39][%mdl 8192]} (17. Rd1 $14 {stays ahead.} Bc3+ 18. Bd2) 17... Bd7 $19 {[%emt 0:00:17]} 18. Bxd7+ {[%emt 0:00:35]} Qxd7 {[%emt 0:00:09]} 19. Rd1 {[%emt 0:04:06]} (19. O-O {only move.} Bd4 20. Bf2 Bxa1 21. Rxa1) 19... Qc6 {[%emt 0:01:00] Strongly threatening ...Bc3+.} 20. fxe5 {[%emt 0:10:21] And now 0-0 would win.} Qxe4 {[%emt 0:00:19] ( -> ...Bc3+)} ({Not} 20... Bc3+ 21. Kf2 $15) 21. Qf3 {[%emt 0:01:51]} Qxf3 {[%emt 0:00:36]} (21... Bc3+ $19 22. Kf1 Qxc2) 22. gxf3 $17 {[%emt 0:00:09]} Bxe5 {[%emt 0:00:05]} 23. f4 {[%emt 0:07:48]} Bf6 {[%emt 0:01:17]} 24. Rg1 {[%emt 0:03:18]} Rxg1+ {[%emt 0:00:26]} 25. Bxg1 {[%emt 0:00:02]} Rxa2 {[%emt 0:00:09][%mdl 4096] Endgame KRB-KRB} 26. Kd2 {[%emt 0:00:06]} Kd7 {[%emt 0:02:21] Black is more active.} 27. Rb1 {[%emt 0:01:42]} Kc7 {[%emt 0:00:28]} 28. Bf2 {[%emt 0:00:14]} (28. Be3 $142) 28... Ra4 {[%emt 0:00:18]} 29. Be3 {[%emt 0:00:28] [#]} Bd4 $1 {[%emt 0:01:14]} 30. Rg1 {[%emt 0:05:18]} Bxe3+ {[%emt 0:00:56]} 31. Kxe3 $19 {[%emt 0:00:09] KR-KR} Ra3+ {[%emt 0:00:10]} 32. Ke4 {[%emt 0:00:09]} Kd6 {[%emt 0:00:40] White must now prevent ...f5+.} 33. Rd1+ {[%emt 0:00:11]} Kc6 {[%emt 0:00:44]} 34. Rg1 {[%emt 0:00:29]} Ra4+ {[%emt 0:00:34]} 35. Ke3 {[%emt 0:00:49]} (35. Ke5 $17) 35... f5 {[%emt 0:01:25]} 36. Rg2 $2 {[%emt 0:01:53]} (36. Rf1) 36... Re4+ {[%emt 0:00:41]} 37. Kf3 {[%emt 0:00:02]} Rc4 {[%emt 0:00:10] aiming for ...Rc3+.} 38. Ke3 {[%emt 0:00:25]} b5 {[%emt 0:00:55]} (38... Kd5 $142 39. Rd2+ Kc5) 39. Rg6 $2 {[%emt 0:01:19]} (39. Rg8 {was the crucial defense.}) 39... Kd5 {[%emt 0:00:05]} 40. Rh6 {[%emt 0:00:09]} Rc3+ {[%emt 0:00:06] Weighted Error Value: White=0.58/Black=0.20 (precise)} 0-1

[Event "87th Spanish Championship 2022"]
[Site "Linares"]
[Date "2022.08.14"]
[Round "5.19"]
[White "Esquivias Quintero, Luis Manuel"]
[Black "Tejedor Fuente, Enrique"]
[Result "0-1"]
[ECO "B30"]
[WhiteElo "2299"]
[BlackElo "2419"]
[Annotator "TA"]
[PlyCount "98"]
[EventDate "2022.08.11"]
[EventType "swiss"]
[EventCountry "ESP"]
[SourceTitle "playchess.com"]
[Source "ChessBase"]
[SourceQuality "1"]
[TimeControl "5400+30"]

{[%evp 9,98,18,71,79,80,87,72,62,53,39,37,39,54,62,67,61,68,58,57,0,0,0,0,0,4,-16,-16,-16,-16,-15,-15,-16,-20,-21,0,0,0,-24,-11,-121,-134,-133,-118,-167,-166,-164,-152,-171,-175,-152,-149,-168,-165,-175,-178,-470,-464,-513,-513,-513,-513,-609,-613,-656,-651,-700,-692,-661,-633,-1035,-1180,-1010,-994,-856,-642,-580,-466,-367,-269,-685,-556,-29975,-29976,-29979,-29980,-29980,-29981,-29981,-29982,-29983,-29984]} 1. e4 {[%emt 0:01:40][%cal Be2e4,Be4e5][%mdl 32]} c5 {[%emt 0:01:19]} 2. Nf3 {[%emt 0:01:20]} Nc6 {[%emt 0:00:05]} 3. Bb5 {[%emt 0:00:24]} Nf6 {[%emt 0:00:33]} 4. Bxc6 {[%emt 0:02:04]} bxc6 {[%emt 0:00:39]} 5. e5 {[%emt 0:03:10]} Ng8 {[%emt 0:03:40]} (5... Nd5 $11 {keeps the balance.}) 6. O-O $16 {[%emt 0:01:08][%cal Bh1f1,Bf1e1,Be1e7][%mdl 32] [#] B30: Sicilian: 2...Nc6 3 Bb5, lines without ...g6.} g6 $146 {[%emt 0:02:07]} ({Predecessor:} 6... e6 7. d3 Ne7 8. Nbd2 Ng6 9. b3 d5 10. exd6 Bxd6 11. Bb2 O-O 12. Nc4 Bf4 {0-1 (59) Bakhmanov,F (1521)-Keskin,C (1508) Cagliari 2018}) 7. Re1 {[%emt 0:10:26]} Bg7 {[%emt 0:01:50]} 8. Nc3 {[%emt 0:00:10] White is better.} f6 $1 {[%emt 0:03:38]} 9. exf6 {[%emt 0:09:32]} Nxf6 {[%emt 0:00:09]} 10. Qe2 {[%emt 0:00:09]} O-O {[%emt 0:08:19]} 11. Qxe7 {[%emt 0:14:22]} Qxe7 {[%emt 0:01:11]} 12. Rxe7 {[%emt 0:01:13]} Nd5 {[%emt 0:02:54]} 13. Nxd5 {[%emt 0:00:39]} cxd5 {[%emt 0:00:02]} 14. d4 {[%emt 0:16:15]} ({White should try} 14. d3 $14) 14... cxd4 $11 {[%emt 0:08:51]} 15. Bg5 {[%emt 0:02:42]} Rb8 {[%emt 0:00:55]} 16. Rb1 {[%emt 0:05:09]} Rb6 {[%emt 0:04:15]} 17. Re2 {[%emt 0:04:10]} h6 {[%emt 0:01:58]} 18. Bh4 {[%emt 0:00:35]} Ba6 {[%emt 0:04:39]} (18... g5 $5 19. Bg3 Ba6 $11) 19. Rd2 {[%emt 0:00:13]} d3 {[%emt 0:01:06]} 20. cxd3 {[%emt 0:01:15]} Bc3 $36 {[%emt 0:00:14][%mdl 2048] Black is more active.} 21. Rdd1 {[%emt 0:00:33]} Bxb2 {[%emt 0:04:26]} 22. Bg3 {[%emt 0:00:38]} Re8 {[%emt 0:01:08]} 23. Bd6 {[%emt 0:05:39]} Rc8 {[%emt 0:12:43]} 24. d4 {[%emt 0:05:53]} Bc4 $1 $17 {[%emt 0:10:43] Black continues to play with concentration.} 25. Bc5 {[%emt 0:04:01]} Rbb8 {[%emt 0:02:19] Black is more active.} 26. Bd6 {[%emt 0:05:00]} (26. Re1 $17 {was called for.}) 26... Bxa2 $19 {[%emt 0:04:18] A strong pair of Bishops.} 27. Bxb8 {[%emt 0:00:06]} Rxb8 {[%emt 0:03:54]} 28. Rxb2 {[%emt 0:04:32]} Rxb2 {[%emt 0:00:01][%mdl 4096] Endgame KRB-KRN} 29. Rc1 {[%emt 0:00:28]} Bc4 {[%emt 0:08:44] Threatens to win with ...a5.} 30. h4 {[%emt 0:01:02]} d6 {[%emt 0:00:58] Against Ne5} 31. Ra1 {[%emt 0:00:05]} Ba2 {[%emt 0:00:30] ...Rb1+ is the strong threat.} 32. Rc1 {[%emt 0:01:13] [#]} (32. Kf1) 32... Rb1 $1 {[%emt 0:00:41]} 33. Rxb1 {[%emt 0:00:03]} Bxb1 {[%emt 0:00:01] KB-KN} 34. Kf1 {[%emt 0:00:06]} Bd3+ {[%emt 0:03:15]} 35. Ke1 {[%emt 0:00:04] [#]} Be4 $1 {[%emt 0:00:17] Strongly threatening ...Bxf3.} 36. Nd2 {[%emt 0:00:51]} Bxg2 {[%emt 0:00:42]} 37. Nb3 {[%emt 0:00:02]} Kf7 {[%emt 0:00:50]} 38. Na5 {[%emt 0:00:16]} Ke6 {[%emt 0:01:41] White must now prevent ...Kf5.} 39. Ke2 {[%emt 0:00:08]} Kf5 {[%emt 0:01:26]} 40. Nc6 {[%emt 0:00:36]} a6 {[%emt 0:00:06]} 41. Ne7+ {[%emt 0:00:16]} Kf6 {[%emt 0:00:13]} 42. Nc6 {[%emt 0:00:18]} Ke6 {[%emt 0:00:39] aiming for ...Kf5.} 43. Ke3 {[%emt 0:00:09]} Bf1 {[%emt 0:00:36] Hoping for ...Bb5.} 44. f4 $2 {[%emt 0:01:33]} (44. Kf4) 44... Kd7 {[%emt 0:00:45]} 45. Nb8+ {[%emt 0:01:48]} Kc7 {[%emt 0:02:26] Black mates.} 46. h5 {[%emt 0:00:04]} Kxb8 {[%emt 0:00:33]} 47. hxg6 {[%emt 0:00:13]} Bh3 {[%emt 0:00:01]} 48. Kf3 {[%emt 0:00:27]} a5 {[%emt 0:01:10]} 49. Kg3 {[%emt 0:00:03]} Be6 {[%emt 0:00:49] Weighted Error Value: White=0.33/Black=0.09 (flawless)} 0-1

[Event "87th Spanish Championship 2022"]
[Site "Linares"]
[Date "2022.08.14"]
[Round "5.20"]
[White "Gonzalez Guedes, Iyan"]
[Black "Ingunza Curro, Andres"]
[Result "1/2-1/2"]
[ECO "B67"]
[WhiteElo "2250"]
[BlackElo "2370"]
[Annotator "TA"]
[PlyCount "96"]
[EventDate "2022.08.11"]
[EventType "swiss"]
[EventCountry "ESP"]
[SourceTitle "playchess.com"]
[Source "ChessBase"]
[SourceQuality "1"]
[TimeControl "5400+30"]

{[%evp 18,96,29,22,28,41,35,7,14,22,50,25,15,-22,0,0,10,7,17,2,47,-7,0,-28,-27,-43,-60,-43,-51,-39,-25,-58,-12,-94,-89,-104,-95,-108,-105,-158,-25,-102,-118,-113,-108,-96,-73,-157,0,0,0,-18,-18,-95,-85,-97,-66,-173,-80,-161,-100,-263,8,8,14,10,63,0,0,0,25,6,92,14,16,0,0,0,0,0,0]} 1. e4 c5 2. Nf3 Nc6 3. d4 cxd4 4. Nxd4 Nf6 5. Nc3 d6 6. Bg5 e6 7. Qd2 a6 8. O-O-O Bd7 9. f3 Nxd4 10. Qxd4 Be7 {B67: Sicilian: Richter-Rauzer: 7...a6 8 0-0-0 Bd7, lines without 9 f4 Be7.} 11. g4 Bc6 12. Kb1 {[#]} h5 $146 ({Predecessor:} 12... Qc7 13. Be3 O-O 14. h4 Nd7 15. g5 b5 16. h5 b4 17. Ne2 Rfc8 18. f4 Ba4 {0-1 (61) Osmanodja,F (2326)-Ibraev,V (2108) Chess.com INT 2019}) 13. gxh5 Rxh5 14. f4 Qa5 15. Qe3 Qc5 16. Qe2 Rh8 17. Bg2 {[%cal Of4f5]} O-O-O 18. h4 Kb8 (18... Ng8 $5 {[%cal Rf7f6]}) 19. Rhe1 (19. f5 $14) 19... Ng8 $11 {[%cal Bf6g8,Bg8e7,Be7g6,Bg6h4][%mdl 32]} 20. Bxe7 Nxe7 21. Rh1 Ng6 22. Qg4 Qh5 23. Qg3 Qh6 $36 {[%mdl 2048] Black fights for an advantage.} 24. Ne2 e5 (24... Bb5 $15 {deserves consideration.} 25. h5 Bxe2 26. hxg6 Qxg6 27. Qxg6 fxg6) 25. f5 (25. fxe5 $1 $11 dxe5 26. Rxd8+ Rxd8 27. h5) 25... Nxh4 $17 26. Rh3 Qf6 27. Rdh1 {[%cal Rh3h4]} g5 28. Nc3 (28. fxg6 $142 Nxg6 29. b3) 28... Rhg8 ({Better is} 28... Nxg2 $17 29. Qxg2 Rxh3 30. Qxh3 d5 31. exd5 Bxd5) 29. Bf1 (29. Rf1 $11) 29... d5 30. exd5 Bxd5 31. Nxd5 Rxd5 {[%cal Rd5d1]} 32. Bxa6 (32. Bd3 $142 Rgd8 33. Qg4) 32... Qd6 $2 ({Not} 32... bxa6 33. Rxh4 gxh4 34. Qxg8+ Rd8 35. Qg4 $11) (32... Nxf5 $17 33. Qg2 Rgd8) 33. Bd3 $11 Nxf5 34. Qg4 Ne7 {[%cal Of7f5] And now ...f5! would win.} 35. a3 (35. Rh8 $11) 35... Rd4 $17 36. Qe2 f5 37. Rh6 {[#]} (37. c3 $15 Rf4 38. Rh7) 37... Qc7 (37... Qc5 $1 $19 {is more deadly. Hoping for ...e4.} 38. c3 Rd7) 38. c3 (38. Re6 $17 {was worth a try.} e4 39. Rh7) 38... Rd6 (38... Rdd8 $19 {Strongly threatening ...e4.} 39. Rh7 e4) 39. Rh7 $2 (39. Rxd6 $17 Qxd6 40. Rh5) 39... Rb6 $2 (39... e4 $19 40. Bc4 Rgd8) 40. Bxf5 $11 {[%mdl 64] Pin} Qc5 41. Be4 Rf8 (41... Nd5 $11 42. Bxd5 Qxd5) 42. Rf1 (42. Rh8 $1 $14 Rxh8 43. Rxh8+ Ka7 44. Ka1) 42... Rxf1+ 43. Qxf1 {Threatens to win with Qf8+.} Ka7 44. Qg2 g4 {[#]} (44... Qxa3 $1 $11 {keeps the balance.} 45. Qc2 Qc5) 45. Rg7 ({White should try} 45. Ka1 $1 $16) 45... Qxa3 $1 {The position is equal.} 46. Bxb7 Qd6 47. Bd5 {aiming for Kc2. The board is on fire.} Kb8 48. c4 {Black must now prevent Qc2.} Nxd5 {Weighted Error Value: White=0.38/Black=0.37} 1/2-1/2

[Event "87th Spanish Championship 2022"]
[Site "Linares"]
[Date "2022.08.14"]
[Round "5.21"]
[White "Medarde Santiago, Luis Marcos"]
[Black "Ilinca Ilinca, Felix Antonio"]
[Result "1-0"]
[ECO "B33"]
[WhiteElo "2330"]
[BlackElo "2162"]
[Annotator "RC"]
[PlyCount "95"]
[EventDate "2022.08.11"]
[EventType "swiss"]
[EventCountry "ESP"]
[SourceTitle "playchess.com"]
[Source "ChessBase"]
[SourceQuality "1"]
[TimeControl "5400+30"]

1. e4 {[%emt 0:00:13]} c5 {[%emt 0:00:52]} 2. Nf3 {[%emt 0:00:11]} Nc6 {[%emt 0:00:47]} 3. d4 {[%emt 0:00:06]} cxd4 {[%emt 0:00:43]} 4. Nxd4 {[%emt 0:00:02]} Nf6 {[%emt 0:00:41]} 5. Nc3 {[%emt 0:00:05]} e5 {[%emt 0:01:10]} 6. Ndb5 {[%emt 0:00:08]} d6 {[%emt 0:00:41]} 7. Bg5 {[%emt 0:00:06]} a6 {[%emt 0:00:45]} 8. Na3 {[%emt 0:00:02]} b5 {[%emt 0:00:26]} 9. Bxf6 {[%emt 0:00:06]} gxf6 {[%emt 0:00:33]} 10. Nd5 {[%emt 0:00:16]} Bg7 {[%emt 0:00:51]} 11. g3 {[%emt 0:00:16]} f5 {[%emt 0:08:55]} 12. Bg2 {[%emt 0:07:37]} fxe4 {[%emt 0:14:56]} 13. Bxe4 {[%emt 0:00:37]} Be6 {[%emt 0:21:12]} 14. O-O {[%emt 0:05:14]} O-O {[%emt 0:03:30]} 15. Ne3 {[%emt 0:08:58]} Qd7 {[%emt 0:12:46]} 16. c3 {[%emt 0:03:28]} f5 {[%emt 0:04:34]} 17. Bd5 {[%emt 0:03:57]} Rae8 {[%emt 0:06:52]} 18. f4 {[%emt 0:14:00]} exf4 {[%emt 0:08:39]} 19. gxf4 {[%emt 0:00:01]} b4 {[%emt 0:01:14]} 20. Nac4 {[%emt 0:00:37]} Kh8 {[%emt 0:02:01]} 21. Kh1 {[%emt 0:01:30]} Ne7 {[%emt 0:02:44]} 22. Nb6 {[%emt 0:12:32]} Qc7 {[%emt 0:04:00]} 23. Bxe6 {[%emt 0:02:10]} Qxb6 {[%emt 0:00:01]} 24. Qd3 {[%emt 0:12:10]} bxc3 {[%emt 0:02:42]} 25. bxc3 {[%emt 0:00:08]} Qc6+ {[%emt 0:00:48]} 26. Nd5 {[%emt 0:01:09]} Nxd5 {[%emt 0:00:33]} 27. Bxd5 {[%emt 0:00:32]} Qxc3 {[%emt 0:00:15]} 28. Qxa6 {[%emt 0:05:43]} Qc5 {[%emt 0:00:35]} 29. Rad1 {[%emt 0:01:21]} Rb8 {[%emt 0:00:30]} 30. Qc4 {[%emt 0:02:00]} Qa5 {[%emt 0:00:17]} 31. Qd3 {[%emt 0:06:21]} Rbe8 {[%emt 0:00:53]} 32. Rg1 {[%emt 0:00:45]} Rf6 {[%emt 0:00:25]} 33. Rb1 {[%emt 0:00:51]} Qc5 {[%emt 0:00:30]} 34. Rg2 {[%emt 0:02:00]} Ref8 {[%emt 0:00:36]} 35. Rbg1 {[%emt 0:00:32]} R6f7 {[%emt 0:00:25]} 36. Bxf7 {[%emt 0:00:30]} Rxf7 {[%emt 0:00:00]} 37. Qb3 {[%emt 0:00:23]} Qc7 {[%emt 0:00:12]} 38. Qd5 {[%emt 0:02:24]} h6 {[%emt 0:00:04]} 39. Rg6 {[%emt 0:00:40]} Qe7 {[%emt 0:00:24]} 40. Qe6 {[%emt 0:02:39]} Qb7+ {[%emt 0:00:06]} 41. R6g2 {[%emt 0:00:11]} Rf6 {[%emt 0:00:12]} 42. Qb3 {[%emt 0:00:30]} Qc6 {[%emt 0:01:32]} 43. Qg3 {[%emt 0:01:25]} Rf7 {[%emt 0:00:05]} 44. Qg6 {[%emt 0:00:18]} Qd5 {[%emt 0:00:59]} 45. Re1 {[%emt 0:00:51]} Re7 {[%emt 0:00:44]} 46. Rxe7 {[%emt 0:00:10]} Qd1+ {[%emt 0:00:06]} 47. Rg1 {[%emt 0:00:03]} Qf3+ {[%emt 0:00:10]} 48. Qg2 {[%emt 0:00:05]} 1-0